Workbook

Sheet ENG
C1: 2021 | D1: 2020 | E1: 2019 | F1: Act 11/2018 on non-financial information and diversity | G1: GRI (Global Reporting Initiative) | H1: SASB (Sustanability Accounting Standards Board) | I1: SDGs (Sustainable Development Goals)
A2: Materiality
A3: Material issues (high and medium materiality) | B3: units | C3: 26 | D3: 21 | E3: 16 | G3: 102-21; 102-46, 102-47
A4: Enquiries | B4: units | C4: 2959 | D4: 4657 | E4: 3285 | G4: 102-21; 102-46, 102-47
A5: Shareholders | B5: units | C5: 800 | D5: 1820 | E5: 1774 | G5: 102-21; 102-40
A6: Customers | B6: units | C6: 800 | D6: 1657 | E6: 1069 | G6: 102-21; 102-40
A7: Employees | B7: units | C7: 1314 | D7: 893 | E7: 327 | G7: 102-21; 102-40
A8: Experts anf analysts | B8: units | C8: 45 | D8: 287 | E8: 115 | G8: 102-21; 102-40
A10: Corporate governance
A11: Good Governance Recommendations (CNMV) - Full Compliance | B11: units | C11: 57 | D11: 57 | E11: 58 | G11: 102-18; 102-22
A12: Good Governance Recommendations (CNMV) - Partial Compliance | B12: units | C12: 5 | D12: 4 | E12: 3 | G12: 102-18; 102-22
A13: Good Governance Recommendations (CNMV) - Non-compliance | B13: units | C13: 1 | D13: 2 | E13: 2 | G13: 102-18; 102-22
A14: Quorum General Shareholders' Meeting (AGM) (Ordinary) | B14: % | C14: 0.754 | D14: 0.667 | E14: 0.656 | G14: 102-18; 102-22
A15: Average approval of items on the AGM agenda | B15: % | C15: 0.9243 | D15: 0.96 | E15: 0.96 | G15: 102-18; 102-22
A16: Independent board members | B16: % | C16: 0.6 | D16: 0.429 | E16: 0.438 | G16: 102-18; 102-22
A17: Women on the Board | B17: % | C17: 0.4 | D17: 0.429 | E17: 0.375 | G17: 102-18; 102-22; 405-1
A18: Average age of Board Members | B18: years | C18: 61 | D18: 65 | E18: 61 | G18: 102-18; 102-22
A19: Average attendance at Board meetings | B19: % | C19: 0.9808 | D19: 1 | E19: 0.979 | G19: 102-18; 102-22
A20: Board Members - Average term in position | B20: years | C20: 4 | D20: 4.8 | E20: 4.1 | G20: 102-18; 102-22
A21: Independent Board Members - Average term in position | B21: years | C21: 4.4 | D21: 5.1 | E21: 4.9 | G21: 102-18; 102-22
A22: Average remuneration of Board Members - Men1 | B22: € thousands | C22: 143 | D22: 308 | E22: 289 | F22: ü | G22: 405-1; 405-1
A23: Average remuneration of Board Members - Women1 | B23: € thousands | C23: 143 | D23: 175 | E23: 146 | F23: ü | G23: 405-1; 405-2
A24: 1. This does not include remuneration derived from positions other than those of representation on the Board of Directors of CaixaBank, S.A.
A26: Shares and Shareholder structure
A27: Share price at end of period | B27: €/share | C27: 2.414 | D27: 2.101 | E27: 2.798
A28: Average daily trading volume | B28: units | C28: 16315 | D28: 23637 | E28: 23583
A29: Percentage stake "la Caixa" Banking Foundation 1 | B29: % | C29: 0.3001 | D29: 0.4 | E29: 0.4 | G29: 102-5
A30: Percentage stake FROB2 | B30: % | C30: 0.161 | D30: n.d. | E30: n.d. | G30: 102-5
A31: Percentage stake in Own Shares, Board Members and other shareholders with Board representation | B31: % | C31: 0.001 | D31: 0.028 | E31: 0.043 | G31: 102-5
A32: Percentage stake free float - management | B32: % | C32: 0.537 | D32: 0.571 | E32: 0.557 | G32: 102-5
A33: Free float - Retail | B33: % | C33: 0.28 | D33: 0.34 | E33: 0.33 | G33: 102-5
A34: Free float - Institutionals (Nacionals and Internationals) | B34: % | C34: 0.703 | D34: 0.66 | E34: 0.67 | G34: 102-5
A35: Free float - Employees | B35: % | C35: 0.017 | D35: n.d. | E35: n.d. | G35: 102-5
A36: Shareholders | B36: uds | C36: 663457 | D36: 564723 | E36: 578123 | G36: 102-5
A37: Shareholder remuneration for the year | B37: €/share | C37: 0.03 | D37: 0.07 | E37: 0.15
A38: 1. Barcelona Savings and Pensions Banking Foundation, ”la Caixa” (“la Caixa” Banking Foundation). According last notification submitted to the CNMV on March 29, 2021, through Criteria Caixa, S.A.U.
A39: 2 According to the last notification submitted to the CNMV on March 30, 2021, through BFA Tenedora de Acciones, S.A.
A41: Commercial positioning
A42: Customers | B42: M | C42: 20.7 | D42: 15.2 | E42: 15.6 | F42: ü | G42: 102-2; 102-6; 102-7
A43: Customers Spain | B43: M | C43: 18.9 | D43: 13.4 | E43: 13.7 | F43: ü | G43: 102-2; 102-6; 102-7
A44: Customers Portugal | B44: M | C44: 1.9 | D44: 1.9 | E44: 1.9 | F44: ü | G44: 102-2; 102-6; 102-7
A46: Market shares in Spain
A47: Share of private customers | B47: % | C47: 0.43 | D47: 0.309 | E47: 0.278 | G47: 102-2; 102-6; 102-7
A48: Share of private customers as primary bank | B48: % | C48: 0.32 | D48: 0.239 | E48: 0.244 | G48: 102-2; 102-6; 102-7
A49: Share of Spanish self-employed workers1 | B49: % | C49: 0.4425 | D49: 0.331 | E49: 0.334 | G49: 102-2; 102-6; 102-7 | I49: 8
A50: Share of businesses (turnover <1 €M) | B50: % | C50: 0.323 | D50: 0.242 | E50: 0.241 | G50: 102-2; 102-6; 102-7
A51: Share of self-employed farmers | B51: % | C51: 0.453 | D51: 0.278 | E51: 0.277 | G51: 102-2; 102-6; 102-7 | I51: 1; 6; 14
A52: Loans1 | B52: % | C52: 0.242 | D52: 0.162 | E52: 16,0% | G52: 102-2; 102-6; 102-7
A53: Loans to business1 | B53: % | C53: 0.237 | D53: 0.165 | E53: 15,4% | G53: 102-2; 102-6; 102-7 | I53: 8
A54: Mortgage loans1 | B54: % | C54: 0.259 | D54: 0.153 | E54: 15,7% | G54: 102-2; 102-6; 102-7
A55: Deposits1 | B55: % | C55: 0.252 | D55: 0.156 | E55: 15,2% | G55: 102-2; 102-6; 102-7
A56: Long-term saving | B56: % | C56: 0.294 | D56: 0.233 | E56: 22,5% | G56: 102-2; 102-6; 102-7
A57: Pension plans | B57: % | C57: 0.339 | D57: 0.263 | E57: 25,5% | G57: 102-2; 102-6; 102-7
A58: Investment funds | B58: % | C58: 0.245 | D58: 0.175 | E58: 17,1% | G58: 102-2; 102-6; 102-7
A59: Life-savings insurance2 | B59: % | C59: 0.347 | D59: 0.299 | E59: 28,7% | G59: 102-2; 102-6; 102-7
A60: Life-risk insurance | B60: % | C60: 0.233 | D60: 0.215 | E60: 0.194 | G60: 102-2; 102-6; 102-7
A61: Total life insurance | B61: % | C61: 0.339 | D61: 0.2927 | E61: n.a. | G61: 102-2; 102-6; 102-7
A62: Health insurance | B62: % | C62: 0.289 | D62: 0.305 | E62: 30,1% | G62: 102-2; 102-6; 102-7
A63: Card turnover | B63: % | C63: 0.327 | D63: 0.233 | E63: 23,5% | G63: 102-2; 102-6; 102-7
A64: POS terminal invoicing | B64: % | C64: 0.367 | D64: 0.265 | E64: 27,5% | G64: 102-2; 102-6; 102-7
A65: Direct deposits of pensions2 | B65: % | C65: 0.337 | D65: 0.201 | E65: 0.2 | G65: 102-2; 102-6; 102-7
A66: Direct deposits of salaries2 | B66: % | C66: 0.376 | D66: 0.276 | E66: n.d. | G66: 102-2; 102-6; 102-7
A68: Market share in Portugal
A69: Loans1 | B69: % | C69: 0.111 | D69: 0.107 | E69: 0.104 | G69: 102-2; 102-6; 102-7
A70: Mortgage loans1 | B70: % | C70: 0.132 | D70: 0.122 | E70: 0.119 | G70: 102-2; 102-6; 102-7
A71: Deposits1 | B71: % | C71: 0.109 | D71: 0.106 | E71: 0.101 | G71: 102-2; 102-6; 102-7
A72: Direct deposits of salaries1 | B72: % | C72: 0.097 | D72: 0.096 | E72: 0.097 | G72: 102-2; 102-6; 102-7
A73: Investment funds (including PPRs)1 | B73: % | C73: 0.172 | D73: 0.188 | E73: 0.2 | G73: 102-2; 102-6; 102-7
A74: Capitalisation insurance (including PPRs)1 | B74: % | C74: 0.123 | D74: 0.114 | E74: 0.112 | G74: 102-2; 102-6; 102-7
A75: 1. Data as at November 2021. 2. Data as at September 2021.
A77: Local accessible banking
A78: Network in Spain
A79: Branches | B79: units | C79: 4966 | D79: 3782 | E79: 4118 | F79: ü | G79: 102-2; 102-6; 102-7
A80: Retail branches | B80: units | C80: 4615 | D80: 3571 | E80: 3918 | G80: 102-2; 102-6; 102-7
A81: of which Stores | B81: units | C81: 608 | D81: 548 | E81: 458 | G81: 102-2; 102-6; 102-7
A82: of which Business Banks | B82: units | C82: 84 | D82: 49 | E82: =28+14 -> 42 | G82: 102-2; 102-6; 102-7
A83: of which AgroBank rural branches | B83: units | C83: 1175 | D83: 888 | E83: 919 | G83: 102-2; 102-6; 102-7 | I83: 1; 6; 14
A84: of which all in one | B84: units | C84: 4 | D84: 2 | G84: 102-2; 102-6
A85: Private Banking Centres | B85: units | C85: 127 | D85: 68 | E85: 127 | G85: 102-2; 102-6; 102-7
A86: Business Centres | B86: units | C86: 208 | D86: 128 | E86: 53 | G86: 102-2; 102-6; 102-7
A87: Institutional Banking Centres | B87: units | C87: 15 | D87: 14 | E87: 15 | G87: 102-2; 102-6; 102-7
A88: Corporate Banking Centres | B88: units | C88: 1 | D88: 1 | E88: 1 | G88: 102-2; 102-6; 102-7
A89: International points of presence | B89: units | C89: 27 | D89: 27 | E89: 27 | G89: 102-2; 102-6; 102-7
A90: Spanish towns with >5,000 inhabitants where CaixaBank has a presence | B90: % | C90: 0.99 | D90: 0.988 | E90: 0.94 | F90: ü | I90: 1; 11
A91: Spanish towns with >10,000 inhabitants where CaixaBank has a presence | B91: % | C91: 1 | D91: 1 | E91: 1 | F91: ü | I91: 1; 11
A92: Number of towns in which it is the only entity present | B92: units | C92: 420 | D92: 215 | E92: 229 | F92: ü | I92: 1; 11
A93: Spanish towns in which CaixaBank is present | B93: units | C93: 2234 | D93: n.d. | E93: n.d. | F93: ü | I93: 1; 11
A94: Citizens with a branch in their municipality | B94: % | C94: 0.918 | D94: 0.91 | E94: 0.91 | F94: ü | I94: 1; 11
A95: Citizens in small municipalities (< 5,000 inhabitants) covered by a CaixaBank branch or agent | B95: % | C95: 0.386 | D95: 0.331 | E95: n.d. | F95: ü | I95: 1; 11
A96: Number of Mobile Offices | B96: units | C96: 14
A97: Number of towns covered by the Mobile Offices | B97: units | C97: 426
A98: Accessible branches | B98: % | C98: 0.958 | D98: 0.94 | E98: 0.93 | I98: 1; 11
A99: Branches where barriers have been removed | B99: units | C99: 16 | D99: 49 | E99: 64 | I99: 1; 11
A100: ATMs | B100: units | C100: 13008 | D100: 8827 | E100: 9111 | F100: ü | G100: 102-2; 102-6
A101: Accessible ATMs | B101: % | C101: 1 | D101: 0.99 | E101: 0.99 | F101: ü | I101: 1; 11
A102: ATMs with video screens providing help in sign language | B102: % | C102: 0.9542 | D102: 0.998 | E102: 0.996 | I102: 1; 11
A104: Network in Portugal
A105: Portugal branches | B105: units | C105: 348 | D105: 421 | E105: 477 | F105: ü | G105: 102-2; 102-6; 102-7
A106: Retail branches | B106: units | C106: 297 | D106: 360 | E106: 406 | G106: 102-2; 102-6; 102-7
A107: Premier/Private Centres | B107: units | C107: 22 | D107: 27 | E107: 36 | G107: 102-2; 102-6; 102-7
A108: Business Centres | B108: units | C108: 29 | D108: 34 | E108: 34 | G108: 102-2; 102-6; 102-7
A109: Portuguese towns > 5,000 inhabitants with presence | B109: % | C109: 0.63 | D109: 0.64 | E109: n.d. | F109: ü | I109: 1; 11
A110: Portuguese towns > 10,000 inhabitants with presence | B110: % | C110: 0.81 | D110: 0.83 | E110: 0.85 | F110: ü | I110: 1; 11
A111: Accessible branches | B111: % | C111: n.d. | D111: 0.26 | E111: 0.38 | I111: 1; 11
A112: Branches where barriers have been removed | B112: units | C112: n.d. | D112: n.d. | E112: 5 | I112: 1; 11
A113: ATMs - Portugal | B113: units | C113: 1418 | D113: 1456 | E113: 1380 | F113: ü | G113: 102-2; 102-6; 102-7
A115: Innovation, multi-channel communication and digitalisation
A116: CaixaBank Spain
A117: Digital clients (Now Customers) | B117: M | C117: 10.5 | D117: 5.5 | E117: 6.5 | I117: 9
A118: Digital clients (Now Customers) | B118: % | C118: 0.731 | D118: -0.383 | E118: 0.617 | I118: 9
A119: Mobile customers | B119: M | C119: 4.5 | D119: n.d. | E119: n.d. | I119: 9
A120: Mobile customers (s/ digital clients) | B120: % | C120: 0.538 | D120: 0.38 | E120: 0.38 | I120: 9
A121: Share of digital customers | B121: % | C121: 0.4 | D121: 0.3 | E121: 0.3 | I121: 9
A122: Customers that connect daily (12-month average) | B122: M | C122: 3 | D122: 1.8 | E122: 1.8 | I122: 9
A123: inTouch customers | B123: M | C123: 2.3 | D123: 1.3 | E123: 1.3 | I123: 9
A124: imagin customers1 | B124: M | C124: 3.7 | D124: 1.4 | E124: 1.4 | I124: 9
A125: Cards downloaded from mobile phones or watch | B125: M | C125: 3.77 | D125: 1.91 | E125: 1.91 | I125: 9
A126: Invoicing in purchases made through the mobile channel | B126: M | C126: 1.15 | D126: 1.09 | E126: n.d. | I126: 9
A128: BPI
A129: Digital customers (BPI Net) | B129: M | C129: 0.771812 | D129: n.d. | E129: n.d. | I129: 9
A130: Digital customers (BPI Net) | B130: % | C130: 0.515 | D130: n.d. | E130: n.d. | I130: 9
A132: CaixaBank Group 2
A133: Cards issued | B133: M | C133: 20.1 | D133: 17.6 | E133: 17.6
A134: Card turnover | B134: €m | C134: 64214 | D134: 52052 | E134: 52052
A135: Businesses/PoS | B135: units | C135: 713243 | D135: 423767 | E135: 423767
A136: Invoicing in dataphones | B136: €m | C136: 68602 | D136: 55499 | E136: 55499
A137: 1. Includes 1M customers over 18 years of age.
A139: Customer experience and quality
A140: Users contacted1 | B140: units | C140: 10034005 | D140: 228537 | E140: 399480
A142: CaixaBank Spain
A143: Committed customers2 | B143: % | C143: 0.349 | D143: 0.338 | E143: 0.35
A144: Experience Index (IEX, scale 0-100)2 | B144: units | C144: 86.3 | D144: 85.4 | E144: 86.3
A146: BPI
A147: Individuals IEX (scale 0-100) | B147: units | C147: 91.4 | D147: 91 | E147: 87.7
A148: 1. In 2021 it includes contacts through touchpoints.
A149: 2. Modification of the 2020 data based on recalculation of the information due to organizational restructuring.
A151: Cybersecurity, efficiency and IT infrastructure
A152: Investment in information security | B152: €m | C152: 54 | D152: 50 | E152: 50 | I152: 9; 16
A153: People in the Security & Governance team | B153: units | C153: 55 | D153: 39 | E153: 36 | I153: 9; 16
A154: Phishing simulations per employee/year | B154: units | C154: 12 | D154: 12 | E154: 12 | I154: 9; 16
A155: 0-clickers in phishing campaigns | B155: % | C155: 0.33 | D155: 0.54 | E155: 0.48 | I155: 9; 16
A156: Employees trained in Cybersecurity | B156: % | C156: 0.99 | D156: 0.98 | E156: 0.98 | I156: 9; 16
A157: Investment in development and technology | B157: €m | C157: 1037.64 | D157: =626+81+8+4+22+3+1+25+1+10+50+102 -> 933 | E157: 931 | I157: 9
A158: Investment in development and technology - Extraordinary integration 2021 | B158: €m | C158: 227 | I158: 9
A159: Transactions processed | B159: M | C159: 153179 | D159: 120666 | E159: 98963
A160: Relevant incidents resolved in less than 4 hours | B160: % | C160: 0.852 | D160: 0.797 | E160: 0.887
A161: Number of applications managed in the internal cloud - Degree of cloud adoption | B161: units/% | C161: 612/21,0 | D161: 476/16,6 | E161: 400/9,9
A162: Data managed daily in the datapool model | B162: TB | C162: 15 | D162: 11 | E162: 650
A163: Regulatory reports generated using datapool | B163: % | C163: 0.844 | D163: 0.822 | E163: 0.775
A164: Cases of robotics implemented | B164: units | C164: 451 | D164: 302 | E164: 144
A165: Time dedicated to administrative processes in branches | B165: % | C165: 0.159 | D165: 0.1645 | E165: 0.185
A166: Cognitive assistants for administrative processes (AI) | B166: units | C166: 14 | D166: 3 | E166: 3
A167: Improved project time-to-market | B167: % | C167: -0.26 | D167: -0.11 | E167: -0.058
A168: Number of leaks with information | B168: units | C168: 0 | D168: n.d | E168: n.d | H168: ü | I168: 9; 16
A169: Number of leaks with personally identifiable information | B169: units | C169: 0 | D169: n.d | E169: n.d | H169: ü | I169: 9; 16
A170: Number of customers affected by leaks of personally identifiable information | B170: units | C170: 0 | D170: n.d | E170: n.d | H170: ü | I170: 9; 16
A172: People working in CaixaBank
A173: CaixaBank Group employees | B173: units | C173: 49762 | D173: 35434 | E173: 35736 | F173: ü | G173: 102-8
A174: CaixaBank, S.A. | B174: units | C174: 41602 | D174: 27404 | E174: 27572 | G174: 102-8
A175: BPI | B175: units | C175: 4462 | D175: 4622 | E175: 4840 | G175: 102-8
A176: Companies of the Group | B176: units | C176: 3698 | D176: =+D173-D175-D174 -> 3408 | E176: =+E173-E174-E175 -> 3324 | G176: 102-8
A177: Average age | B177: years | C177: 45.96 | D177: 43.7 | E177: 42.6 | G177: 102-8
A178: Average length of service | B178: years | C178: 18.41 | D178: 16.31 | E178: 15.5 | G178: 102-8
A179: Number of employees with disabilities | B179: units | C179: 588 | D179: 362 | E179: 343 | F179: ü | G179: 102-8; 405-1
A180: Employees with permanent or indefinite full-time contracts | B180: % | C180: 0.998 | D180: =35169/35434 -> 0.9925213072 | E180: 0.983 | G180: 102-8
A181: Female | B181: % | C181: 0.5553 | D181: 0.546 | E181: 0.548 | F181: ü | G181: 102-8 ; 405-1 | I181: 5
A182: Women in managerial positions, starting from A and B branch asst. manager1 | B182: % | C182: 0.413 | D182: 0.416 | E182: 0.413 | G182: 102-8; 405-1 | I182: 5
A183: Management positions covered internally1 | B183: % | C183: 0.9994 | D183: 0.991 | E183: 0.993 | G183: 102-8
A184: Average remuneration | B184: € | C184: 57919.39 | D184: 59864 | E184: 58902 | F184: ü | G184: 102-8, 401-1
A185: Average remuneration - Women | B185: € | C185: 52821.27 | D185: 54285 | E185: 53076 | F185: ü | G185: 405-2 ; 102-38 ; 102-39; 102-8
A186: Average remuneration - Men | B186: € | C186: 64314.33 | D186: 66591 | E186: 65857 | F186: ü | G186: 405-2 ; 102-8; 102-38 ; 102-39
A187: Salary gap | B187: % | C187: 0.0105 | D187: 0.0177 | E187: 0.0169 | F187: ü | G187: 102-8; 405-2
A188: Average remuneration - Upper management | B188: € | C188: 90690.7 | D188: 98509 | E188: 97444 | F188: ü | G188: 405-2 ; 102-38 ; 102-39; 102-8 | I188: 5
A189: Average Remuneration - Middle management | B189: € | C189: 69424.11 | D189: 70601 | E189: 69375 | F189: ü | G189: 405-2 ; 102-38 ; 102-39; 102-8
A190: Average remuneration - Other employees | B190: € | C190: 48046.64 | D190: 48100 | E190: 46497 | F190: ü | G190: 405-2 ; 102-38 ; 102-39; 102-8
A191: Training hours per employee | B191: units | C191: 81.77 | D191: 73.3 | E191: 98 | F191: ü | G191: 404-1 ; 102-8
A192: Investment in training by employee | B192: € | C192: 263 | D192: 417 | E192: 456 | F192: ü | G192: 404-1 ; 102-8
A193: Employees with financial advisory certification | B193: units | C193: 32088 | D193: 18710 | E193: 18074 | G193: 404-1 ; 404-2; 102-8
A194: Employees trained in the Real Estate Credit Act | B194: units | C194: 30664 | D194: 18066 | E194: 9863 | G194: 404-1 ; 404-2; 102-8
A195: Empleados trained in IDD (Insurance Distribution Directive) | B195: units | C195: 33259 | D195: 21475 | E195: n.d. | G195: 404-1 ; 404-2; 102-8
A196: New hires | B196: units | C196: 172 | D196: 640 | E196: 1125 | F196: ü | G196: 102-8; 401-1
A197: New hires - women | B197: units | C197: 95 | D197: 307 | E197: 510 | F197: ü | G197: 102-8; 401-1
A198: New hires - men | B198: units | C198: 77 | D198: 333 | E198: 615 | F198: ü | G198: 102-8; 401-1
A199: Layoffs | B199: units | C199: 82 | D199: 88 | E199: 92 | F199: ü | G199: 102-8
A200: Layoffs - women | B200: units | C200: 39 | D200: 45 | E200: 40 | F200: ü | G200: 102-8
A201: Layoffs - men | B201: units | C201: 43 | D201: 43 | E201: 52 | F201: ü | G201: 102-8
A202: Undesired turnover | B202: % | C202: 0.0017 | D202: 0.0025 | E202: 0.003 | F202: ü | G202: 401-1; 102-8
A203: Employees covered by a collective agreement | B203: % | C203: 1 | D203: 1 | E203: 1 | F203: ü | G203: 102-8; 102-41
A204: Employees who enjoyed reductions in working hours (childcare)2 | B204: units | C204: 2166 | D204: 1080 | E204: 1691 | G204: 102-8 | I204: 5
A205: Employees on leave of absence (personal care, etc.)2 | B205: units | C205: 615 | D205: 769 | E205: 555 | G205: 102-8 | I205: 5
A206: Employees who enjoyed paid leave2 | B206: units | C206: 3059 | D206: 2344 | E206: 2555 | G206: 102-8 | I206: 5
A207: Number of work-related accidents | B207: units | C207: 418 | D207: =280+5 -> 285 | E207: 523 | F207: ü | G207: 403-9; 102-8
A208: Number of work-related accidents - Women | B208: units | C208: 288 | D208: =180+3 -> 183 | E208: =345+2 -> 347 | F208: ü | G208: 403-9; 102-8
A209: Number of work-related accidents - Men | B209: units | C209: 130 | D209: =100+2 -> 102 | E209: =171+5 -> 176 | F209: ü | G209: 403-9; 102-8
A210: Frequency of work-related accidents (accident rate) | B210: units | C210: 0.9 | D210: 1.04 | E210: 1.77 | F210: ü | G210: 403-9; 102-8
A211: Frequency of work-related accidents (accident rate) - Women | B211: units | C211: 1.07 | D211: 1.48 | E211: 2.43 | F211: ü | G211: 403-9; 102-8
A212: Frequency of work-related accidents (accident rate) - Men | B212: units | C212: 0.7 | D212: 0.52 | E212: 1.01 | F212: ü | G212: 403-9; 102-8
A213: Severity rate | B213: units | C213: 0.1 | D213: 0.09 | E213: n.d. | F213: ü | G213: 403-9; 102-8
A214: Severity rate - Women | B214: units | C214: 0.11 | D214: 0.09 | E214: n.d. | F214: ü | G214: 403-9; 102-8
A215: Severity rate - Men | B215: units | C215: 0.09 | D215: 0.09 | E215: n.d. | F215: ü | G215: 403-9; 102-8
... 231 more rows
